[Event "*** Titled Tuesday Blitz"]
[Site "Chess.com"]
[Date "2018.11.06"]
[Round "2"]
[White "Adham_Fawzy"]
[Black "Durarbayli"]
[Result "1/2-1/2"]
[WhiteElo "2656"]
[BlackElo "2716"]
[TimeControl "180+2"]
[EndTime "13:24:18 PST"]
[Termination "Game drawn - insufficient material"]

1. e4 {[%clk 0:03:01.9]} 1... Nf6 {[%clk 0:02:57.7]} 2. e5 {[%clk 0:02:59.2]}
2... Nd5 {[%clk 0:02:58.9]} 3. c4 {[%clk 0:02:58.7]} 3... Nb6 {[%clk 0:02:59.4]}
4. a4 {[%clk 0:02:59.6]} 4... d5 {[%clk 0:02:45.6]} 5. c5 {[%clk 0:02:57.8]}
5... N6d7 {[%clk 0:02:38.8]} 6. d4 {[%clk 0:02:58.4]} 6... e6 {[%clk 0:02:32.5]}
7. Nc3 {[%clk 0:02:55]} 7... b6 {[%clk 0:02:31.7]} 8. cxb6 {[%clk 0:02:49.6]}
8... axb6 {[%clk 0:02:31.7]} 9. f4 {[%clk 0:02:49.7]} 9... Ba6 {[%clk
0:02:29.1]} 10. Bxa6 {[%clk 0:02:45.5]} 10... Rxa6 {[%clk 0:02:28]} 11. Nf3
{[%clk 0:02:46.2]} 11... c5 {[%clk 0:02:27.5]} 12. Be3 {[%clk 0:02:40]} 12...
Nc6 {[%clk 0:02:28]} 13. O-O {[%clk 0:02:40.3]} 13... g6 {[%clk 0:02:27.2]} 14.
Nb5 {[%clk 0:02:29.9]} 14... Be7 {[%clk 0:02:22.8]} 15. Qd3 {[%clk 0:02:25.9]}
15... Ra5 {[%clk 0:02:07.7]} 16. g4 {[%clk 0:02:17.3]} 16... Nb4 {[%clk
0:01:54]} 17. Qb1 {[%clk 0:02:04.3]} 17... c4 {[%clk 0:01:52.7]} 18. f5 {[%clk
0:02:01]} 18... Nd3 {[%clk 0:01:47.4]} 19. Ne1 {[%clk 0:02:01.9]} 19... Bg5
{[%clk 0:01:40.6]} 20. Bf2 {[%clk 0:01:27.1]} 20... Nxf2 {[%clk 0:01:26.4]} 21.
Kxf2 {[%clk 0:01:29]} 21... O-O {[%clk 0:01:00.4]} 22. Nf3 {[%clk 0:01:27.4]}
22... exf5 {[%clk 0:00:38.4]} 23. gxf5 {[%clk 0:01:25.7]} 23... Bh6 {[%clk
0:00:39.6]} 24. Kg1 {[%clk 0:01:09.7]} 24... Qe7 {[%clk 0:00:32.9]} 25. Kh1
{[%clk 0:00:56.9]} 25... Rfa8 {[%clk 0:00:33.4]} 26. Qd1 {[%clk 0:00:46.1]}
26... Nf8 {[%clk 0:00:33.5]} 27. Nd6 {[%clk 0:00:45.1]} 27... b5 {[%clk
0:00:32.9]} 28. Nxb5 {[%clk 0:00:44.4]} 28... Qd7 {[%clk 0:00:29.4]} 29. e6
{[%clk 0:00:43.1]} 29... fxe6 {[%clk 0:00:28.1]} 30. Ne5 {[%clk 0:00:44.2]}
30... Qd8 {[%clk 0:00:21.1]} 31. fxg6 {[%clk 0:00:35.4]} 31... Qh4 {[%clk
0:00:22.4]} 32. gxh7+ {[%clk 0:00:33.4]} 32... Nxh7 {[%clk 0:00:24]} 33. Rg1+
{[%clk 0:00:33.7]} 33... Bg7 {[%clk 0:00:18.3]} 34. Rg4 {[%clk 0:00:34.7]} 34...
Qh6 {[%clk 0:00:19]} 35. Qf3 {[%clk 0:00:18.7]} 35... Rf8 {[%clk 0:00:19.1]} 36.
Qg3 {[%clk 0:00:18.8]} 36... Nf6 {[%clk 0:00:15.8]} 37. Rg6 {[%clk 0:00:18.6]}
37... Ne4 {[%clk 0:00:16.8]} 38. Qg2 {[%clk 0:00:17.9]} 38... Rf2 {[%clk
0:00:16.9]} 39. Rxh6 {[%clk 0:00:18.3]} 39... Rxg2 {[%clk 0:00:17.8]} 40. Kxg2
{[%clk 0:00:19.6]} 40... Bxh6 {[%clk 0:00:19.5]} 41. Nc6 {[%clk 0:00:20.9]}
41... Ra6 {[%clk 0:00:19.3]} 42. Nb4 {[%clk 0:00:22.1]} 42... Rb6 {[%clk
0:00:19.8]} 43. Nc2 {[%clk 0:00:20.7]} 43... Bd2 {[%clk 0:00:19.1]} 44. Rg1
{[%clk 0:00:21.4]} 44... Kf7 {[%clk 0:00:18.9]} 45. Kf3 {[%clk 0:00:22.6]} 45...
Rb8 {[%clk 0:00:16.4]} 46. Rb1 {[%clk 0:00:21.5]} 46... Rh8 {[%clk 0:00:17.1]}
47. Kg2 {[%clk 0:00:21.5]} 47... Rg8+ {[%clk 0:00:18.1]} 48. Kf3 {[%clk
0:00:22.8]} 48... Rh8 {[%clk 0:00:19.7]} 49. Kg2 {[%clk 0:00:24.1]} 49... Ke7
{[%clk 0:00:20]} 50. b3 {[%clk 0:00:24.7]} 50... Bf4 {[%clk 0:00:21.1]} 51. h3
{[%clk 0:00:24.4]} 51... Rg8+ {[%clk 0:00:21.3]} 52. Kf3 {[%clk 0:00:23.1]}
52... Nd2+ {[%clk 0:00:22.5]} 53. Kxf4 {[%clk 0:00:24.4]} 53... Nxb1 {[%clk
0:00:23.9]} 54. bxc4 {[%clk 0:00:25.6]} 54... dxc4 {[%clk 0:00:23.4]} 55. Ke5
{[%clk 0:00:25.5]} 55... Rg5+ {[%clk 0:00:24]} 56. Ke4 {[%clk 0:00:26.4]} 56...
Rg2 {[%clk 0:00:22.8]} 57. Ne3 {[%clk 0:00:26.8]} 57... Ra2 {[%clk 0:00:23.8]}
58. Nxc4 {[%clk 0:00:26.8]} 58... Rxa4 {[%clk 0:00:23.4]} 59. Nbd6 {[%clk
0:00:25.2]} 59... Nd2+ {[%clk 0:00:19.7]} 60. Nxd2 {[%clk 0:00:26.1]} 60... Kxd6
{[%clk 0:00:21.2]} 61. Nf3 {[%clk 0:00:27.5]} 61... Ra5 {[%clk 0:00:21.6]} 62.
h4 {[%clk 0:00:27.6]} 62... Rf5 {[%clk 0:00:22.6]} 63. Ng5 {[%clk 0:00:25.9]}
63... Ke7 {[%clk 0:00:22.6]} 64. Ke3 {[%clk 0:00:21]} 64... Kf6 {[%clk
0:00:21.8]} 65. Ke4 {[%clk 0:00:22.2]} 65... Rf1 {[%clk 0:00:21.2]} 66. Nf3
{[%clk 0:00:23.3]} 66... Rd1 {[%clk 0:00:17.7]} 67. Ne5 {[%clk 0:00:21.6]} 67...
Re1+ {[%clk 0:00:15.2]} 68. Kf4 {[%clk 0:00:22.4]} 68... Rf1+ {[%clk 0:00:16.5]}
69. Ke4 {[%clk 0:00:23.4]} 69... Kg7 {[%clk 0:00:13.9]} 70. Ng4 {[%clk
0:00:21.2]} 70... Rf5 {[%clk 0:00:13.5]} 71. Nh2 {[%clk 0:00:19.3]} 71... Kg6
{[%clk 0:00:12.9]} 72. Nf3 {[%clk 0:00:19.5]} 72... Kh5 {[%clk 0:00:14.1]} 73.
Ng5 {[%clk 0:00:20.6]} 73... Rf1 {[%clk 0:00:09.1]} 74. Nxe6 {[%clk 0:00:21.2]}
74... Kxh4 {[%clk 0:00:11]} 75. d5 {[%clk 0:00:21.3]} 75... Kg4 {[%clk
0:00:12.1]} 76. d6 {[%clk 0:00:22.6]} 76... Re1+ {[%clk 0:00:10.6]} 77. Kd5
{[%clk 0:00:23.1]} 77... Ra1 {[%clk 0:00:09.7]} 78. d7 {[%clk 0:00:23.8]} 78...
Ra8 {[%clk 0:00:11.3]} 79. Kd6 {[%clk 0:00:24.8]} 79... Kf5 {[%clk 0:00:11.9]}
80. Ke7 {[%clk 0:00:23]} 80... Ra7 {[%clk 0:00:11.2]} 81. Ke8 {[%clk 0:00:24.2]}
81... Rxd7 {[%clk 0:00:08.8]} 82. Kxd7 {[%clk 0:00:26.1]} 1/2-1/2

[Event "*** Titled Tuesday Blitz"]
[Site "Chess.com"]
[Date "2018.11.06"]
[Round "2"]
[White "TastyFrenchFries"]
[Black "TST2014"]
[Result "1/2-1/2"]
[WhiteElo "2382"]
[BlackElo "2494"]
[TimeControl "180+2"]
[EndTime "13:24:31 PST"]
[Termination "Game drawn - insufficient material"]

1. Na3 {[%clk 0:03:01.9]} 1... d5 {[%clk 0:02:58.4]} 2. Nh3 {[%clk 0:03:02.2]}
2... e5 {[%clk 0:02:57.6]} 3. d3 {[%clk 0:03:00.4]} 3... Nf6 {[%clk 0:02:54.6]}
4. g3 {[%clk 0:03:01.8]} 4... h6 {[%clk 0:02:51.7]} 5. Bg2 {[%clk 0:03:03]} 5...
Bg4 {[%clk 0:02:52.2]} 6. f3 {[%clk 0:03:04.2]} 6... Be6 {[%clk 0:02:52.7]} 7.
O-O {[%clk 0:03:04.1]} 7... Bc5+ {[%clk 0:02:49.7]} 8. e3 {[%clk 0:03:05]} 8...
Nc6 {[%clk 0:02:44.2]} 9. c3 {[%clk 0:03:05]} 9... a6 {[%clk 0:02:25.3]} 10. d4
{[%clk 0:03:05.3]} 10... Bd6 {[%clk 0:02:22.2]} 11. Nc2 {[%clk 0:03:04.1]} 11...
Qd7 {[%clk 0:02:20.6]} 12. Nf2 {[%clk 0:03:05.1]} 12... g5 {[%clk 0:02:19]} 13.
a4 {[%clk 0:03:04.3]} 13... h5 {[%clk 0:02:18.3]} 14. e4 {[%clk 0:03:04.8]}
14... Rg8 {[%clk 0:01:57.5]} 15. Re1 {[%clk 0:02:52.5]} 15... O-O-O {[%clk
0:01:52.1]} 16. b4 {[%clk 0:02:52.9]} 16... g4 {[%clk 0:01:43.2]} 17. b5 {[%clk
0:02:43.2]} 17... Na5 {[%clk 0:01:31.9]} 18. bxa6 {[%clk 0:02:37.8]} 18... bxa6
{[%clk 0:01:26.2]} 19. f4 {[%clk 0:02:23.3]} 19... exf4 {[%clk 0:01:10.8]} 20.
e5 {[%clk 0:02:24.5]} 20... fxg3 {[%clk 0:00:59.6]} 21. hxg3 {[%clk 0:02:21]}
21... h4 {[%clk 0:01:00.6]} 22. gxh4 {[%clk 0:02:21.7]} 22... g3 {[%clk
0:01:01]} 23. Nd3 {[%clk 0:02:14.6]} 23... Ne4 {[%clk 0:00:59.6]} 24. exd6
{[%clk 0:02:12.4]} 24... Qxd6 {[%clk 0:00:52.6]} 25. Bf4 {[%clk 0:02:12]} 25...
Qe7 {[%clk 0:00:53.5]} 26. Ne5 {[%clk 0:01:16]} 26... Qxh4 {[%clk 0:00:51.1]}
27. Qf3 {[%clk 0:01:17.2]} 27... Nb3 {[%clk 0:00:43.5]} 28. Rad1 {[%clk
0:01:08.8]} 28... f6 {[%clk 0:00:39.1]} 29. Nc6 {[%clk 0:01:06.1]} 29... Bg4
{[%clk 0:00:36.9]} 30. Qd3 {[%clk 0:01:02.5]} 30... Bxd1 {[%clk 0:00:25.9]} 31.
Ne7+ {[%clk 0:00:54.5]} 31... Kb7 {[%clk 0:00:21.5]} 32. Rxd1 {[%clk 0:00:46.4]}
32... Qxf4 {[%clk 0:00:21.4]} 33. Rf1 {[%clk 0:00:39.6]} 33... Qh4 {[%clk
0:00:14.3]} 34. Rb1 {[%clk 0:00:40.6]} 34... Qh2+ {[%clk 0:00:08.5]} 35. Kf1
{[%clk 0:00:42.1]} 35... c6 {[%clk 0:00:05]} 36. Rxb3+ {[%clk 0:00:42.6]} 36...
Kc7 {[%clk 0:00:06.5]} 37. Nxg8 {[%clk 0:00:43.6]} 37... Rxg8 {[%clk 0:00:06.8]}
38. Qe3 {[%clk 0:00:36.6]} 38... Qh4 {[%clk 0:00:06.9]} 39. Rb1 {[%clk
0:00:32.4]} 39... Rg4 {[%clk 0:00:07.6]} 40. Ne1 {[%clk 0:00:29.8]} 40... Rf4+
{[%clk 0:00:08.4]} 41. Nf3 {[%clk 0:00:31.3]} 41... Qg4 {[%clk 0:00:08.3]} 42.
Rc1 {[%clk 0:00:20.6]} 42... Kd6 {[%clk 0:00:08.8]} 43. c4 {[%clk 0:00:21.2]}
43... Qf5 {[%clk 0:00:09.7]} 44. cxd5 {[%clk 0:00:22]} 44... cxd5 {[%clk
0:00:10.1]} 45. Qa3+ {[%clk 0:00:22.2]} 45... Ke6 {[%clk 0:00:11.4]} 46. Ke2
{[%clk 0:00:23.7]} 46... Ng5 {[%clk 0:00:10.3]} 47. Rc6+ {[%clk 0:00:24.4]}
47... Kf7 {[%clk 0:00:11]} 48. Rc7+ {[%clk 0:00:23.4]} 48... Kg6 {[%clk
0:00:12.1]} 49. Nh4+ {[%clk 0:00:24.8]} 49... Rxh4 {[%clk 0:00:12.4]} 50. Qxg3
{[%clk 0:00:24.9]} 50... Rg4 {[%clk 0:00:11.9]} 51. Qf2 {[%clk 0:00:23.2]} 51...
Rf4 {[%clk 0:00:11.7]} 52. Qe3 {[%clk 0:00:22.3]} 52... Qg4+ {[%clk 0:00:12.4]}
53. Kd3 {[%clk 0:00:23.1]} 53... Re4 {[%clk 0:00:07.2]} 54. Bxe4+ {[%clk
0:00:23.4]} 54... dxe4+ {[%clk 0:00:08.4]} 55. Kc3 {[%clk 0:00:24]} 55... Qf3
{[%clk 0:00:08.5]} 56. Kd2 {[%clk 0:00:25]} 56... Qg2+ {[%clk 0:00:09.1]} 57.
Qe2 {[%clk 0:00:22.9]} 57... Qg3 {[%clk 0:00:09.4]} 58. Rc3 {[%clk 0:00:23.2]}
58... Qf4+ {[%clk 0:00:10.2]} 59. Qe3 {[%clk 0:00:24.3]} 59... Qd6 {[%clk
0:00:10.9]} 60. Kc2 {[%clk 0:00:22.8]} 60... Qb4 {[%clk 0:00:11.5]} 61. d5
{[%clk 0:00:21.4]} 61... Qxa4+ {[%clk 0:00:12.1]} 62. Kd2 {[%clk 0:00:21.7]}
62... Qa2+ {[%clk 0:00:12.7]} 63. Rc2 {[%clk 0:00:22.6]} 63... Qxd5+ {[%clk
0:00:14.1]} 64. Ke2 {[%clk 0:00:23.8]} 64... Qf5 {[%clk 0:00:14.3]} 65. Rc5
{[%clk 0:00:24.2]} 65... Qg4+ {[%clk 0:00:14.8]} 66. Kd2 {[%clk 0:00:25.4]}
66... Nf3+ {[%clk 0:00:15.3]} 67. Kc3 {[%clk 0:00:26.2]} 67... Qe6 {[%clk
0:00:15.8]} 68. Rc4 {[%clk 0:00:26.9]} 68... Qe5+ {[%clk 0:00:16.4]} 69. Kb3
{[%clk 0:00:28.2]} 69... f5 {[%clk 0:00:17.5]} 70. Rc6+ {[%clk 0:00:27.8]} 70...
Kh5 {[%clk 0:00:17.4]} 71. Qh6+ {[%clk 0:00:25.2]} 71... Kg4 {[%clk 0:00:18.3]}
72. Qg6+ {[%clk 0:00:26.2]} 72... Kf4 {[%clk 0:00:18]} 73. Qh6+ {[%clk
0:00:26.3]} 73... Kg3 {[%clk 0:00:18.7]} 74. Rxa6 {[%clk 0:00:25.7]} 74... Qd5+
{[%clk 0:00:18.5]} 75. Kb4 {[%clk 0:00:26.7]} 75... Qd4+ {[%clk 0:00:19.1]} 76.
Kb5 {[%clk 0:00:28]} 76... Qd3+ {[%clk 0:00:20.1]} 77. Kb6 {[%clk 0:00:28.8]}
77... Qb3+ {[%clk 0:00:20.3]} 78. Ka7 {[%clk 0:00:29.9]} 78... Kf2 {[%clk
0:00:16.8]} 79. Rf6 {[%clk 0:00:28.6]} 79... Qe3+ {[%clk 0:00:16.3]} 80. Qxe3+
{[%clk 0:00:28.6]} 80... Kxe3 {[%clk 0:00:17.5]} 81. Rxf5 {[%clk 0:00:30]} 81...
Kd3 {[%clk 0:00:18]} 82. Rd5+ {[%clk 0:00:28.7]} 82... Nd4 {[%clk 0:00:18.4]}
83. Kb6 {[%clk 0:00:27.7]} 83... e3 {[%clk 0:00:18.1]} 84. Kc5 {[%clk
0:00:20.8]} 84... e2 {[%clk 0:00:18.4]} 85. Rxd4+ {[%clk 0:00:22.1]} 85... Ke3
{[%clk 0:00:19.6]} 86. Kd5 {[%clk 0:00:21.6]} 86... e1=Q {[%clk 0:00:19.3]} 87.
Re4+ {[%clk 0:00:23]} 87... Kf2 {[%clk 0:00:20.4]} 88. Rxe1 {[%clk 0:00:24.3]}
88... Kxe1 {[%clk 0:00:21.3]} 1/2-1/2

[Event "*** Titled Tuesday Blitz"]
[Site "Chess.com"]
[Date "2018.11.06"]
[Round "2"]
[White "dreamist"]
[Black "johnathan113"]
[Result "1-0"]
[WhiteElo "2682"]
[BlackElo "2515"]
[TimeControl "180+2"]
[EndTime "13:25:41 PST"]
[Termination "dreamist won on time"]

1. e4 {[%clk 0:03:01.9]} 1... c5 {[%clk 0:03:00.1]} 2. Nf3 {[%clk 0:03:00.4]}
2... g6 {[%clk 0:03:01]} 3. d4 {[%clk 0:02:59.9]} 3... cxd4 {[%clk 0:03:02.9]}
4. Qxd4 {[%clk 0:03:00.9]} 4... Nf6 {[%clk 0:03:04.1]} 5. Bb5 {[%clk 0:03:01.3]}
5... a6 {[%clk 0:03:05.5]} 6. e5 {[%clk 0:03:02.1]} 6... axb5 {[%clk 0:03:07.4]}
7. exf6 {[%clk 0:03:03.1]} 7... Nc6 {[%clk 0:03:09.3]} 8. fxe7 {[%clk
0:02:47.6]} 8... Qxe7+ {[%clk 0:03:11.2]} 9. Qe3 {[%clk 0:02:48.8]} 9... Qxe3+
{[%clk 0:03:10.8]} 10. Bxe3 {[%clk 0:02:49.7]} 10... Bg7 {[%clk 0:03:12.7]} 11.
c3 {[%clk 0:02:42.8]} 11... O-O {[%clk 0:03:13.6]} 12. O-O {[%clk 0:02:43.6]}
12... b4 {[%clk 0:03:15.1]} 13. Rd1 {[%clk 0:02:39.7]} 13... d5 {[%clk
0:03:13.4]} 14. Nd4 {[%clk 0:02:38.5]} 14... Ne5 {[%clk 0:03:12.4]} 15. cxb4
{[%clk 0:02:35.5]} 15... Nc4 {[%clk 0:03:12.1]} 16. Nc3 {[%clk 0:02:33.8]} 16...
Nxb2 {[%clk 0:03:12.6]} 17. Rdb1 {[%clk 0:02:22.2]} 17... Nc4 {[%clk 0:03:11.8]}
18. Nxd5 {[%clk 0:02:23.4]} 18... Nxe3 {[%clk 0:03:09.7]} 19. fxe3 {[%clk
0:02:23.4]} 19... Ra3 {[%clk 0:02:15.3]} 20. Rb3 {[%clk 0:01:37.8]} 20... Ra4
{[%clk 0:01:37.5]} 21. a3 {[%clk 0:01:05.3]} 21... Be6 {[%clk 0:01:31.9]} 22.
Nxe6 {[%clk 0:01:05.3]} 22... fxe6 {[%clk 0:01:23.5]} 23. Nc3 {[%clk 0:01:05.7]}
23... Ra6 {[%clk 0:01:15.9]} 24. Rd1 {[%clk 0:01:05.2]} 24... Rfa8 {[%clk
0:01:13.3]} 25. Nb5 {[%clk 0:01:02.8]} 25... Rb6 {[%clk 0:01:13.2]} 26. Nc3
{[%clk 0:00:54.6]} 26... Rba6 {[%clk 0:01:13.1]} 27. Nb1 {[%clk 0:00:54.3]}
27... b5 {[%clk 0:01:07.1]} 28. Rbd3 {[%clk 0:00:47.6]} 28... Bf6 {[%clk
0:01:05.8]} 29. Rd6 {[%clk 0:00:47.3]} 29... Kf7 {[%clk 0:01:06.4]} 30. Rxa6
{[%clk 0:00:46.1]} 30... Rxa6 {[%clk 0:01:08.3]} 31. Rd7+ {[%clk 0:00:47.7]}
31... Be7 {[%clk 0:01:06.2]} 32. Rb7 {[%clk 0:00:47]} 32... Rc6 {[%clk
0:01:01.3]} 33. Kf2 {[%clk 0:00:42]} 33... Rc1 {[%clk 0:00:23.2]} 34. Nd2 {[%clk
0:00:42.7]} 34... Ra1 {[%clk 0:00:24]} 35. Rxb5 {[%clk 0:00:36.9]} 35... Rxa3
{[%clk 0:00:25.3]} 36. Rb7 {[%clk 0:00:35.3]} 36... Ra2 {[%clk 0:00:22.3]} 37.
Ke2 {[%clk 0:00:35.5]} 37... Kf6 {[%clk 0:00:23.7]} 38. Kd3 {[%clk 0:00:33.6]}
38... Ra3+ {[%clk 0:00:18.7]} 39. Kd4 {[%clk 0:00:34.8]} 39... e5+ {[%clk
0:00:16.4]} 40. Ke4 {[%clk 0:00:34.9]} 40... Ra4 {[%clk 0:00:17]} 41. Rb6+
{[%clk 0:00:32.9]} 41... Kg7 {[%clk 0:00:18.2]} 42. Kxe5 {[%clk 0:00:31.1]}
42... Bxb4 {[%clk 0:00:17.8]} 43. Rb7+ {[%clk 0:00:32.1]} 43... Kh6 {[%clk
0:00:18.9]} 44. Ne4 {[%clk 0:00:31.8]} 44... Bf8 {[%clk 0:00:18.9]} 45. g4
{[%clk 0:00:25.9]} 45... Ra5+ {[%clk 0:00:17.2]} 46. Kf4 {[%clk 0:00:25.4]}
46... g5+ {[%clk 0:00:17.7]} 47. Kf3 {[%clk 0:00:26.7]} 47... Kg6 {[%clk
0:00:08.2]} 48. Rb6+ {[%clk 0:00:22.7]} 48... Kg7 {[%clk 0:00:09.6]} 49. Ng3
{[%clk 0:00:24]} 49... Bc5 {[%clk 0:00:04.5]} 50. Nf5+ {[%clk 0:00:18.1]} 50...
Kf7 {[%clk 0:00:06.1]} 51. Rb7+ {[%clk 0:00:17.1]} 51... Kg8 {[%clk 0:00:06.7]}
52. h3 {[%clk 0:00:15.7]} 52... Bf8 {[%clk 0:00:06.7]} 53. Rd7 {[%clk 0:00:14]}
53... h5 {[%clk 0:00:07.6]} 54. Ng3 {[%clk 0:00:11]} 54... h4 {[%clk 0:00:07]}
55. Ne4 {[%clk 0:00:11.6]} 55... Bh6 {[%clk 0:00:08.1]} 56. Rd5 {[%clk 0:00:08]}
56... Ra2 {[%clk 0:00:06.6]} 57. Nxg5 {[%clk 0:00:08.5]} 57... Rh2 {[%clk
0:00:07.5]} 58. Ke4 {[%clk 0:00:08.6]} 58... Kf8 {[%clk 0:00:06.5]} 59. Kf5
{[%clk 0:00:07.5]} 59... Bxg5 {[%clk 0:00:07.2]} 60. Kxg5 {[%clk 0:00:08.9]}
60... Rxh3 {[%clk 0:00:09.1]} 61. e4 {[%clk 0:00:10.4]} 61... Ke7 {[%clk
0:00:07.2]} 62. Re5+ {[%clk 0:00:10.1]} 62... Kd6 {[%clk 0:00:08.2]} 63. Re8
{[%clk 0:00:11]} 63... Rh1 {[%clk 0:00:06.5]} 64. Rh8 {[%clk 0:00:11]} 64... h3
{[%clk 0:00:05.5]} 65. Kh4 {[%clk 0:00:09.9]} 65... h2 {[%clk 0:00:04.6]} 66.
Kg5 {[%clk 0:00:08.8]} 66... Re1 {[%clk 0:00:05.3]} 67. Rxh2 {[%clk 0:00:08.7]}
67... Rxe4 {[%clk 0:00:07.2]} 68. Rh7 {[%clk 0:00:09.6]} 68... Ke6 {[%clk
0:00:08.1]} 69. Rg7 {[%clk 0:00:10.3]} 69... Ra4 {[%clk 0:00:08.2]} 70. Rb7
{[%clk 0:00:07.8]} 70... Rc4 {[%clk 0:00:07.3]} 71. Ra7 {[%clk 0:00:07.8]} 71...
Rb4 {[%clk 0:00:08.1]} 72. Rg7 {[%clk 0:00:09.1]} 72... Rc4 {[%clk 0:00:09.4]}
73. Kh6 {[%clk 0:00:10.4]} 73... Rd4 {[%clk 0:00:09]} 74. g5 {[%clk 0:00:11]}
74... Kf5 {[%clk 0:00:08.8]} 75. Rf7+ {[%clk 0:00:11.8]} 75... Ke6 {[%clk
0:00:10.5]} 76. Rf1 {[%clk 0:00:12.4]} 76... Rh4+ {[%clk 0:00:05.7]} 77. Kg7
{[%clk 0:00:13.4]} 77... Rg4 {[%clk 0:00:07]} 78. g6 {[%clk 0:00:14.7]} 78...
Ke7 {[%clk 0:00:08.9]} 79. Kh7 {[%clk 0:00:15.5]} 79... Rh4+ {[%clk 0:00:09.4]}
80. Kg8 {[%clk 0:00:16.2]} 80... Rh3 {[%clk 0:00:09.2]} 81. g7 {[%clk
0:00:16.7]} 81... Rh4 {[%clk 0:00:06.1]} 82. Re1+ {[%clk 0:00:17.3]} 82... Kf6
{[%clk 0:00:07.4]} 83. Kf8 {[%clk 0:00:17.2]} 1-0